[Event "41th GRE-ch Women 2018"]
[Site "Thessaloniki"]
[Date "2018.12.15"]
[Round "4"]
[White "Markantonaki, Haritomeni"]
[Black "Tsivelekidou, Evgenia"]
[Result "0-1"]
[ECO "B16"]
[WhiteElo "2152"]
[BlackElo "1861"]
[Annotator "NA"]
[PlyCount "106"]
[EventDate "2018.12.12"]
[EventType "tourn"]
[EventCountry "GRE"]
[SourceTitle "playchess.com"]
[Source "ChessBase"]
[SourceQuality "1"]
[TimeControl "40/5400+30:1800+30"]

1. e4 {[%emt 0:00:00]} c6 {[%emt 0:00:00]} 2. d4 {[%emt 0:00:00]} d5 {[%emt 0:00:00]} 3. Nd2 {[%emt 0:00:12]} dxe4 {[%emt 0:00:00]} 4. Nxe4 {[%emt 0:00:05]} Nf6 {[%emt 0:00:30]} 5. Nxf6+ {[%emt 0:00:26]} gxf6 {[%emt 0:00:05]} 6. Nf3 {[%emt 0:01:37]} Bg4 {[%emt 0:01:49]} 7. Be2 {[%emt 0:00:44]} e6 {[%emt 0:00:39]} 8. Bf4 {[%emt 0:04:02]} Bd6 {[%emt 0:02:23]} 9. Qd2 {[%emt 0:01:17]} Qc7 {[%emt 0:03:20]} 10. Bg3 {[%emt 0:02:50]} Nd7 {[%emt 0:03:55]} 11. c4 {[%emt 0:05:46]} h5 {[%emt 0:09:18]} 12. O-O {[%emt 0:06:24]} O-O-O {[%emt 0:03:22]} 13. b4 {[%emt 0:02:57]} Bxg3 {[%emt 0:06:46]} 14. fxg3 {[%emt 0:03:11]} Ne5 {[%emt 0:12:17]} 15. Qc3 {[%emt 0:05:56]} Ng6 {[%emt 0:05:34]} 16. Bd3 {[%emt 0:17:12]} Bxf3 {[%emt 0:14:05]} 17. Rxf3 {[%emt 0:00:28]} f5 {[%emt 0:00:50]} 18. Bc2 {[%emt 0:06:10]} h4 {[%emt 0:02:25]} 19. a4 {[%emt 0:02:47]} Rdg8 {[%emt 0:03:48]} 20. b5 {[%emt 0:03:13]} hxg3 {[%emt 0:03:53]} 21. hxg3 {[%emt 0:00:37]} c5 {[%emt 0:00:52]} 22. a5 {[%emt 0:03:20]} Qd6 {[%emt 0:04:41]} 23. Rd1 {[%emt 0:02:58]} cxd4 {[%emt 0:03:56]} 24. Rxd4 {[%emt 0:02:46]} Qc5 {[%emt 0:01:16]} 25. Qe3 {[%emt 0:02:03]} b6 {[%emt 0:00:10]} 26. axb6 {[%emt 0:06:00]} axb6 {[%emt 0:00:06]} 27. Rd3 {[%emt 0:01:24]} Ne5 {[%emt 0:00:52]} 28. Qxc5+ {[%emt 0:01:36]} bxc5 {[%emt 0:00:06]} 29. Rde3 {[%emt 0:02:31]} Nxf3+ {[%emt 0:00:10]} 30. Rxf3 {[%emt 0:00:01]} Kc7 {[%emt 0:00:51]} 31. Rb3 {[%emt 0:04:34]} Kb6 {[%emt 0:01:40]} 32. Bd1 {[%emt 0:00:22]} Ra8 {[%emt 0:01:19]} 33. Bf3 {[%emt 0:00:47]} Ra1+ {[%emt 0:00:27]} 34. Kf2 {[%emt 0:00:05]} Rd8 {[%emt 0:01:23]} 35. Ke3 {[%emt 0:07:27]} Rd4 {[%emt 0:01:08]} 36. Rc3 {[%emt 0:00:25]} Ra4 {[%emt 0:01:40]} 37. Be2 {[%emt 0:00:05]} Ra2 {[%emt 0:01:41]} 38. Bf3 {[%emt 0:00:09]} f6 {[%emt 0:05:07]} 39. Rc1 {[%emt 0:00:31]} e5 {[%emt 0:02:45]} 40. Bd5 {[%emt 0:00:00]} Rad2 {[%emt 0:00:00]} 41. Rc3 {[%emt 0:01:19]} Rxd5 {[%emt 0:07:19]} 42. cxd5 {[%emt 0:00:06]} Rxd5 {[%emt 0:00:06]} 43. Rc1 {[%emt 0:08:38]} Kxb5 {[%emt 0:01:12]} 44. Rf1 {[%emt 0:00:21]} c4 {[%emt 0:02:30]} 45. Rxf5 {[%emt 0:00:05]} c3 {[%emt 0:01:50]} 46. Rf1 {[%emt 0:01:05]} Rd6 {[%emt 0:01:33]} 47. Ke4 {[%emt 0:02:48]} Kc4 {[%emt 0:02:20]} 48. Kf5 {[%emt 0:00:21]} c2 {[%emt 0:02:11]} 49. Rc1 {[%emt 0:00:19]} Kc3 {[%emt 0:00:49]} 50. g4 {[%emt 0:00:05]} Kd2 {[%emt 0:00:44]} 51. Rxc2+ {[%emt 0:00:36]} Kxc2 {[%emt 0:00:05]} 52. g5 {[%emt 0:00:02]} fxg5 {[%emt 0:00:14]} 53. Kxe5 {[%emt 0:00:21]} Ra6 0-1

[Event "41th GRE-ch Women 2018"]
[Site "Thessaloniki"]
[Date "2018.12.15"]
[Round "4"]
[White "Grapsa, Georgia"]
[Black "Fragkou, Eleni"]
[Result "1-0"]
[ECO "E62"]
[WhiteElo "2097"]
[BlackElo "2031"]
[Annotator "NA"]
[PlyCount "95"]
[EventDate "2018.12.12"]
[EventType "tourn"]
[EventCountry "GRE"]
[SourceTitle "playchess.com"]
[Source "ChessBase"]
[SourceQuality "1"]
[TimeControl "40/5400+30:1800+30"]

1. d4 {[%emt 0:00:00]} Nf6 {[%emt 0:00:00]} 2. c4 {[%emt 0:00:00]} g6 {[%emt 0:00:00]} 3. g3 {[%emt 0:00:00]} Bg7 {[%emt 0:00:00]} 4. Bg2 {[%emt 0:00:00]} O-O {[%emt 0:00:04]} 5. Nf3 {[%emt 0:00:00]} d6 {[%emt 0:00:10]} 6. O-O {[%emt 0:00:04]} Nc6 {[%emt 0:00:10]} 7. Nc3 {[%emt 0:00:06]} e5 {[%emt 0:00:07]} 8. h3 {[%emt 0:01:16]} exd4 {[%emt 0:08:29]} 9. Nxd4 {[%emt 0:03:58]} Nxd4 {[%emt 0:02:27]} 10. Qxd4 {[%emt 0:00:06]} Nd7 {[%emt 0:00:58]} 11. Qd2 {[%emt 0:00:57]} Nc5 {[%emt 0:00:59]} 12. b4 {[%emt 0:04:53]} Ne6 {[%emt 0:13:04]} 13. Bb2 {[%emt 0:00:49]} Bd7 {[%emt 0:16:25]} 14. Rad1 {[%emt 0:02:57]} a5 {[%emt 0:19:10]} 15. a3 {[%emt 0:01:24]} axb4 {[%emt 0:00:57]} 16. axb4 {[%emt 0:00:07]} Bc6 {[%emt 0:01:09]} 17. e4 {[%emt 0:08:03]} f5 {[%emt 0:11:37]} 18. b5 {[%emt 0:07:49]} Bxe4 {[%emt 0:03:01]} 19. Nxe4 {[%emt 0:00:27]} fxe4 {[%emt 0:00:31]} 20. Bxg7 {[%emt 0:00:41]} Kxg7 {[%emt 0:00:04]} 21. Bxe4 {[%emt 0:04:46]} Nc5 {[%emt 0:01:53]} 22. Bg2 {[%emt 0:01:38]} Qf6 {[%emt 0:07:13]} 23. b6 {[%emt 0:01:55]} cxb6 {[%emt 0:00:40]} 24. Qxd6 {[%emt 0:03:14]} Ra2 {[%emt 0:02:00]} 25. Qxf6+ {[%emt 0:05:54]} Rxf6 {[%emt 0:00:07]} 26. f4 {[%emt 0:04:15]} Re6 {[%emt 0:06:44]} 27. Rf2 {[%emt 0:03:21]} Ra3 {[%emt 0:01:05]} 28. g4 {[%emt 0:04:55]} Rc3 {[%emt 0:01:17]} 29. f5 {[%emt 0:06:34]} gxf5 {[%emt 0:00:15]} 30. gxf5 {[%emt 0:00:13]} Rf6 {[%emt 0:00:17]} 31. Rd4 {[%emt 0:01:25]} Rd3 {[%emt 0:03:02]} 32. Rg4+ {[%emt 0:02:21]} Kf8 {[%emt 0:00:43]} 33. Bd5 {[%emt 0:01:54]} h5 {[%emt 0:01:04]} 34. Rg5 {[%emt 0:05:29]} Rxd5 {[%emt 0:00:31]} 35. cxd5 {[%emt 0:00:14]} Ne4 {[%emt 0:00:03]} 36. Rg6 {[%emt 0:02:18]} Kf7 {[%emt 0:01:11]} 37. Rxf6+ {[%emt 0:02:45]} Kxf6 {[%emt 0:00:05]} 38. Re2 {[%emt 0:00:09]} Nc5 {[%emt 0:00:12]} 39. Kf1 {[%emt 0:08:17]} Kxf5 {[%emt 0:00:17]} 40. Ke1 {[%emt 0:00:00]} b5 {[%emt 0:00:00]} 41. Kd2 {[%emt 0:01:20]} b4 {[%emt 0:01:26]} 42. Kc2 {[%emt 0:02:07]} b6 {[%emt 0:04:46]} 43. d6 {[%emt 0:03:23]} h4 {[%emt 0:01:45]} 44. Re8 {[%emt 0:08:55]} Kf6 {[%emt 0:03:36]} 45. Re7 {[%emt 0:03:52]} b5 {[%emt 0:06:59]} 46. Re8 {[%emt 0:05:56]} Kf7 {[%emt 0:02:08]} 47. Re5 {[%emt 0:01:44]} b3+ {[%emt 0:01:11]} 48. Kb1 {[%emt 0:00:28]} 1-0

[Event "41th GRE-ch Women 2018"]
[Site "Thessaloniki"]
[Date "2018.12.15"]
[Round "4"]
[White "Makka, Ioulia"]
[Black "Petraki, Evaggelia"]
[Result "1-0"]
[ECO "B15"]
[WhiteElo "2065"]
[BlackElo "1756"]
[Annotator "NA"]
[PlyCount "109"]
[EventDate "2018.12.12"]
[EventType "tourn"]
[EventCountry "GRE"]
[SourceTitle "playchess.com"]
[Source "ChessBase"]
[SourceQuality "1"]
[TimeControl "40/5400+30:1800+30"]

1. e4 {[%emt 0:00:00]} c6 {[%emt 0:00:00]} 2. d4 {[%emt 0:02:15]} d5 {[%emt 0:00:00]} 3. Nc3 {[%emt 0:01:32]} dxe4 {[%emt 0:00:00]} 4. Nxe4 {[%emt 0:00:04]} Nf6 {[%emt 0:00:00]} 5. Ng3 {[%emt 0:04:55]} h5 {[%emt 0:04:12]} 6. h3 {[%emt 0:09:12]} h4 {[%emt 0:05:42]} 7. N3e2 {[%emt 0:00:13]} Bf5 {[%emt 0:04:12]} 8. Nf3 {[%emt 0:15:01]} Ne4 {[%emt 0:12:45]} 9. Be3 {[%emt 0:08:05]} Qb6 {[%emt 0:09:22]} 10. Qc1 {[%emt 0:02:08]} Na6 {[%emt 0:04:50]} 11. c3 {[%emt 0:01:44]} Nc7 {[%emt 0:02:56]} 12. Nf4 {[%emt 0:10:47]} Nd5 {[%emt 0:03:49]} 13. Nxd5 {[%emt 0:02:15]} cxd5 {[%emt 0:00:04]} 14. a4 {[%emt 0:05:08]} a6 {[%emt 0:00:57]} 15. a5 {[%emt 0:00:51]} Qd8 {[%emt 0:11:39]} 16. Be2 {[%emt 0:01:36]} e6 {[%emt 0:01:25]} 17. Qd1 {[%emt 0:07:49]} Bd6 {[%emt 0:10:04]} 18. Qa4+ {[%emt 0:07:01]} Qd7 {[%emt 0:02:05]} 19. Qxd7+ {[%emt 0:03:35]} Kxd7 {[%emt 0:00:04]} 20. O-O {[%emt 0:02:33]} Rac8 {[%emt 0:05:22]} 21. Nd2 {[%emt 0:03:27]} Nxd2 {[%emt 0:05:08]} 22. Bxd2 {[%emt 0:00:02]} Bc2 {[%emt 0:00:09]} 23. b4 {[%emt 0:04:59]} Bb3 {[%emt 0:03:17]} 24. Rfb1 {[%emt 0:00:52]} Bc4 {[%emt 0:00:47]} 25. Bd1 {[%emt 0:00:57]} Bb5 {[%emt 0:01:29]} 26. Bg4 {[%emt 0:01:32]} Rhg8 {[%emt 0:05:25]} 27. f4 {[%emt 0:01:24]} f5 {[%emt 0:02:25]} 28. Bd1 {[%emt 0:00:18]} Rh8 {[%emt 0:00:26]} 29. Kf2 {[%emt 0:00:34]} Rh6 {[%emt 0:03:04]} 30. Bf3 {[%emt 0:01:33]} Bd3 {[%emt 0:00:46]} 31. Rb2 {[%emt 0:00:28]} Rg6 {[%emt 0:00:25]} 32. Re1 {[%emt 0:00:55]} Be4 {[%emt 0:01:23]} 33. b5 {[%emt 0:00:35]} Rb8 {[%emt 0:00:39]} 34. Bxe4 {[%emt 0:01:23]} fxe4 {[%emt 0:00:08]} 35. c4 {[%emt 0:00:34]} Rf6 {[%emt 0:00:51]} 36. c5 {[%emt 0:00:49]} Bxf4 {[%emt 0:01:04]} 37. Bxf4 {[%emt 0:00:10]} Rxf4+ {[%emt 0:00:02]} 38. Ke3 {[%emt 0:00:07]} Rff8 {[%emt 0:00:05]} 39. Reb1 {[%emt 0:00:25]} Kc7 {[%emt 0:00:22]} 40. bxa6 {[%emt 0:00:00]} bxa6 {[%emt 0:00:00]} 41. Rb6 {[%emt 0:03:23]} g5 {[%emt 0:04:46]} 42. R1b2 {[%emt 0:04:19]} Rfe8 {[%emt 0:04:55]} 43. Rf2 {[%emt 0:02:41]} Rxb6 {[%emt 0:00:39]} 44. axb6+ {[%emt 0:08:42]} Kc6 {[%emt 0:00:54]} 45. Rf7 {[%emt 0:01:09]} Rc8 {[%emt 0:02:12]} 46. Re7 {[%emt 0:02:00]} a5 {[%emt 0:00:32]} 47. Rxe6+ {[%emt 0:00:44]} Kb7 {[%emt 0:00:03]} 48. Re7+ {[%emt 0:01:29]} Kc6 {[%emt 0:01:01]} 49. Ra7 {[%emt 0:01:51]} Kb5 {[%emt 0:01:07]} 50. Rd7 {[%emt 0:03:42]} Ra8 {[%emt 0:05:35]} 51. Rxd5 {[%emt 0:00:57]} a4 {[%emt 0:00:05]} 52. Rf5 {[%emt 0:01:07]} a3 {[%emt 0:07:34]} 53. Rf1 {[%emt 0:00:08]} Re8 {[%emt 0:00:09]} 54. Ra1 {[%emt 0:01:46]} Kb4 {[%emt 0:00:52]} 55. b7 {[%emt 0:00:45]} 1-0

[Event "41th GRE-ch Women 2018"]
[Site "Thessaloniki"]
[Date "2018.12.15"]
[Round "4"]
[White "Skaraki, Antigoni"]
[Black "Nikolaidou, Eleni"]
[Result "1-0"]
[ECO "A45"]
[WhiteElo "2012"]
[BlackElo "1707"]
[Annotator "NA"]
[PlyCount "157"]
[EventDate "2018.12.12"]
[EventType "tourn"]
[EventCountry "GRE"]
[SourceTitle "playchess.com"]
[Source "ChessBase"]
[SourceQuality "1"]
[TimeControl "40/5400+30:1800+30"]

1. d4 {[%emt 0:00:00]} Nf6 {[%emt 0:00:00]} 2. Bf4 {[%emt 0:00:00]} e6 {[%emt 0:00:19]} 3. Nc3 {[%emt 0:01:04]} Bb4 {[%emt 0:01:12]} 4. a3 {[%emt 0:06:07]} Bxc3+ {[%emt 0:01:28]} 5. bxc3 {[%emt 0:00:06]} c5 {[%emt 0:00:23]} 6. Qd3 {[%emt 0:10:58]} d5 {[%emt 0:03:21]} 7. Bg5 {[%emt 0:22:40]} cxd4 {[%emt 0:11:23]} 8. cxd4 {[%emt 0:00:32]} Qa5+ {[%emt 0:01:23]} 9. Qd2 {[%emt 0:05:24]} Qxd2+ {[%emt 0:00:10]} 10. Bxd2 {[%emt 0:00:02]} Nc6 {[%emt 0:00:39]} 11. e3 {[%emt 0:01:48]} O-O {[%emt 0:05:53]} 12. Bd3 {[%emt 0:04:16]} Bd7 {[%emt 0:20:08]} 13. Ne2 {[%emt 0:07:35]} a6 {[%emt 0:06:45]} 14. Nc1 {[%emt 0:09:08]} Rfc8 {[%emt 0:11:15]} 15. Nb3 {[%emt 0:03:35]} Be8 {[%emt 0:09:25]} 16. f3 {[%emt 0:01:32]} e5 {[%emt 0:02:26]} 17. Kf2 {[%emt 0:01:34]} g6 {[%emt 0:04:06]} 18. Rab1 {[%emt 0:00:51]} b5 {[%emt 0:00:41]} 19. Rb2 {[%emt 0:04:09]} Nd7 {[%emt 0:03:14]} 20. e4 {[%emt 0:11:09]} Nxd4 {[%emt 0:00:53]} 21. Nxd4 {[%emt 0:00:16]} exd4 {[%emt 0:00:08]} 22. exd5 {[%emt 0:00:01]} Nb6 {[%emt 0:02:01]} 23. d6 {[%emt 0:00:59]} Nc4 {[%emt 0:00:57]} 24. Bxc4 {[%emt 0:00:05]} Rxc4 {[%emt 0:00:09]} 25. Re1 {[%emt 0:01:00]} Bd7 {[%emt 0:01:13]} 26. Re7 {[%emt 0:00:41]} Be6 {[%emt 0:02:41]} 27. Bg5 {[%emt 0:01:05]} Kg7 {[%emt 0:01:09]} 28. d7 {[%emt 0:02:06]} h6 {[%emt 0:03:03]} 29. Rxe6 {[%emt 0:02:20]} fxe6 {[%emt 0:00:44]} 30. d8=Q {[%emt 0:00:03]} Rxd8 {[%emt 0:00:10]} 31. Bxd8 {[%emt 0:00:02]} Kf7 {[%emt 0:00:56]} 32. Ke2 {[%emt 0:00:54]} e5 {[%emt 0:02:33]} 33. Kd2 {[%emt 0:00:15]} Ke6 {[%emt 0:00:08]} 34. Rb1 {[%emt 0:01:12]} Kd7 {[%emt 0:02:44]} 35. Bf6 {[%emt 0:00:27]} Ke6 {[%emt 0:00:15]} 36. Bg7 {[%emt 0:00:41]} Rc7 {[%emt 0:01:48]} 37. Bxh6 {[%emt 0:01:22]} Rh7 {[%emt 0:00:16]} 38. Bf8 {[%emt 0:00:12]} Rxh2 {[%emt 0:00:22]} 39. Rg1 {[%emt 0:00:04]} a5 {[%emt 0:01:24]} 40. Kd3 {[%emt 0:00:00]} Rh8 {[%emt 0:00:00]} 41. Bg7 {[%emt 0:06:19]} Rh7 {[%emt 0:02:48]} 42. Bxe5 {[%emt 0:14:09]} Kxe5 {[%emt 0:00:14]} 43. Re1+ {[%emt 0:00:01]} Kd5 {[%emt 0:07:41]} 44. Re4 {[%emt 0:00:04]} Rh2 {[%emt 0:00:22]} 45. Rxd4+ {[%emt 0:00:11]} Ke5 {[%emt 0:00:32]} 46. Rg4 {[%emt 0:03:15]} Kf6 {[%emt 0:01:49]} 47. Kd4 {[%emt 0:01:58]} Rh1 {[%emt 0:01:56]} 48. Kc5 {[%emt 0:00:37]} Rb1 {[%emt 0:05:00]} 49. Rd4 {[%emt 0:05:35]} Rb2 {[%emt 0:03:30]} 50. Rd2 {[%emt 0:00:34]} b4 {[%emt 0:01:39]} 51. axb4 {[%emt 0:00:41]} Rxb4 {[%emt 0:00:10]} 52. c4 {[%emt 0:01:02]} Ke5 {[%emt 0:03:40]} 53. Re2+ {[%emt 0:01:06]} Kf5 {[%emt 0:00:36]} 54. Ra2 {[%emt 0:00:13]} Kf4 {[%emt 0:00:31]} 55. Rxa5 {[%emt 0:01:09]} Rb2 {[%emt 0:00:10]} 56. Kd6 {[%emt 0:00:48]} Rxg2 {[%emt 0:00:15]} 57. Ra3 {[%emt 0:00:17]} Rd2+ {[%emt 0:01:14]} 58. Kc6 {[%emt 0:00:04]} Ke5 {[%emt 0:03:03]} 59. c5 {[%emt 0:00:21]} g5 {[%emt 0:03:12]} 60. Kb7 {[%emt 0:02:08]} Rb2+ {[%emt 0:01:20]} 61. Kc7 {[%emt 0:00:06]} Ke6 {[%emt 0:00:44]} 62. c6 {[%emt 0:00:12]} Rb4 {[%emt 0:01:14]} 63. Kc8 {[%emt 0:00:39]} g4 {[%emt 0:00:48]} 64. fxg4 {[%emt 0:00:25]} Rxg4 {[%emt 0:00:07]} 65. c7 {[%emt 0:01:07]} Ke7 {[%emt 0:01:11]} 66. Kb7 {[%emt 0:01:39]} Rb4+ {[%emt 0:00:35]} 67. Kc6 {[%emt 0:00:04]} Rc4+ {[%emt 0:00:13]} 68. Kb6 {[%emt 0:00:15]} Rb4+ {[%emt 0:00:37]} 69. Kc6 {[%emt 0:01:26]} Rc4+ {[%emt 0:00:10]} 70. Kb7 {[%emt 0:00:08]} Rb4+ {[%emt 0:00:15]} 71. Kc8 {[%emt 0:00:03]} Rb2 {[%emt 0:01:08]} 72. Re3+ {[%emt 0:00:05]} Kf7 {[%emt 0:00:22]} 73. Re4 {[%emt 0:00:07]} Kf6 {[%emt 0:00:17]} 74. Kd7 {[%emt 0:00:08]} Rd2+ {[%emt 0:00:10]} 75. Kc6 {[%emt 0:00:06]} Rc2+ {[%emt 0:00:13]} 76. Kd6 {[%emt 0:00:08]} Kf7 {[%emt 0:01:37]} 77. Re5 {[%emt 0:00:25]} Kf6 {[%emt 0:00:25]} 78. Rc5 {[%emt 0:00:07]} Rd2+ {[%emt 0:00:00]} 79. Kc6 {[%emt 0:00:07]} 1-0

[Event "41th GRE-ch Women 2018"]
[Site "Thessaloniki"]
[Date "2018.12.16"]
[Round "5"]
[White "Fragkou, Eleni"]
[Black "Makka, Ioulia"]
[Result "0-1"]
[ECO "B12"]
[WhiteElo "2031"]
[BlackElo "2065"]
[Annotator "NA"]
[PlyCount "82"]
[EventDate "2018.12.12"]
[EventType "tourn"]
[EventCountry "GRE"]
[SourceTitle "playchess.com"]
[Source "ChessBase"]
[SourceQuality "1"]
[TimeControl "40/5400+30:1800+30"]

1. e4 {[%emt 0:00:00]} c6 {[%emt 0:00:00]} 2. d4 {[%emt 0:00:00]} d6 {[%emt 0:00:16]} 3. c4 {[%emt 0:02:30]} Nd7 {[%emt 0:03:24]} 4. Nc3 {[%emt 0:03:05]} g6 {[%emt 0:02:22]} 5. Be3 {[%emt 0:03:12]} Bg7 {[%emt 0:02:26]} 6. Qd2 {[%emt 0:12:27]} a6 {[%emt 0:03:45]} 7. Bd3 {[%emt 0:16:14]} e5 {[%emt 0:20:24]} 8. Nge2 {[%emt 0:01:37]} Ndf6 {[%emt 0:08:19]} 9. f3 {[%emt 0:04:10]} h5 {[%emt 0:07:31]} 10. O-O {[%emt 0:28:48]} h4 {[%emt 0:09:06]} 11. h3 {[%emt 0:06:50]} Nh5 {[%emt 0:03:00]} 12. f4 {[%emt 0:01:17]} Ng3 {[%emt 0:07:30]} 13. Rf3 {[%emt 0:00:31]} Qe7 {[%emt 0:09:55]} 14. dxe5 {[%emt 0:07:23]} Nxe2+ {[%emt 0:00:35]} 15. Qxe2 {[%emt 0:00:29]} dxe5 {[%emt 0:00:53]} 16. Qf2 {[%emt 0:05:24]} exf4 {[%emt 0:02:10]} 17. Bc5 {[%emt 0:00:52]} Qe5 {[%emt 0:02:13]} 18. Rxf4 {[%emt 0:01:47]} Be6 {[%emt 0:00:15]} 19. Bb6 {[%emt 0:00:47]} Ne7 {[%emt 0:09:55]} 20. Rf1 {[%emt 0:00:54]} O-O {[%emt 0:01:57]} 21. Rxh4 {[%emt 0:00:50]} Nc8 {[%emt 0:00:59]} 22. Be3 {[%emt 0:00:39]} Rd8 {[%emt 0:00:19]} 23. Be2 {[%emt 0:00:34]} Nd6 {[%emt 0:00:45]} 24. Bf4 {[%emt 0:00:45]} Qd4 {[%emt 0:01:29]} 25. Be3 {[%emt 0:00:23]} Qe5 {[%emt 0:00:20]} 26. c5 {[%emt 0:00:38]} Nc4 {[%emt 0:00:32]} 27. Bxc4 {[%emt 0:00:42]} Bxc4 {[%emt 0:00:05]} 28. Re1 {[%emt 0:00:22]} Rd3 {[%emt 0:00:42]} 29. Bf4 {[%emt 0:00:38]} Qd4 {[%emt 0:01:06]} 30. Be3 {[%emt 0:00:31]} Qe5 {[%emt 0:01:16]} 31. Bf4 {[%emt 0:00:32]} Qe7 {[%emt 0:00:50]} 32. Be3 {[%emt 0:00:38]} Rxe3 {[%emt 0:00:57]} 33. Rxe3 {[%emt 0:00:15]} Bd4 {[%emt 0:00:14]} 34. Rg4 {[%emt 0:00:24]} Qxc5 {[%emt 0:00:27]} 35. Nd1 {[%emt 0:00:39]} Bxa2 {[%emt 0:00:46]} 36. b4 {[%emt 0:00:28]} Qc1 {[%emt 0:00:33]} 37. Qxa2 {[%emt 0:00:40]} Bxe3+ {[%emt 0:00:21]} 38. Kh2 {[%emt 0:00:07]} Qxd1 {[%emt 0:00:12]} 39. Rxg6+ {[%emt 0:00:05]} Kf8 {[%emt 0:00:37]} 40. Rf6 {[%emt 0:00:00]} Bg1+ 41. Kg3 {[%emt 0:00:37]} Qe1+ {[%emt 0:03:14]} 0-1

[Event "41th GRE-ch Women 2018"]
[Site "Thessaloniki"]
[Date "2018.12.16"]
[Round "5"]
[White "Androni, Konstantina"]
[Black "Skaraki, Antigoni"]
[Result "1-0"]
[ECO "E70"]
[WhiteElo "1912"]
[BlackElo "2012"]
[Annotator "NA"]
[PlyCount "69"]
[EventDate "2018.12.12"]
[EventType "tourn"]
[EventCountry "GRE"]
[SourceTitle "playchess.com"]
[Source "ChessBase"]
[SourceQuality "1"]
[TimeControl "40/5400+30:1800+30"]

1. d4 {[%emt 0:00:00]} g6 {[%emt 0:00:00]} 2. e4 {[%emt 0:02:53]} Bg7 {[%emt 0:00:00]} 3. c4 {[%emt 0:02:42]} d6 {[%emt 0:00:13]} 4. Nc3 {[%emt 0:00:10]} Nf6 {[%emt 0:00:35]} 5. Bg5 {[%emt 0:00:12]} O-O {[%emt 0:00:45]} 6. Qd2 {[%emt 0:00:12]} c5 {[%emt 0:08:22]} 7. d5 {[%emt 0:00:15]} Qa5 {[%emt 0:00:21]} 8. Bd3 {[%emt 0:00:58]} Nbd7 {[%emt 0:14:55]} 9. f4 {[%emt 0:04:42]} e6 {[%emt 0:07:50]} 10. Nge2 {[%emt 0:00:45]} exd5 {[%emt 0:00:30]} 11. exd5 {[%emt 0:00:25]} Re8 {[%emt 0:01:05]} 12. O-O {[%emt 0:00:08]} b5 {[%emt 0:18:16]} 13. cxb5 {[%emt 0:24:26]} Nxd5 {[%emt 0:00:08]} 14. f5 {[%emt 0:02:03]} Bb7 {[%emt 0:08:21]} 15. Bh6 {[%emt 0:12:15]} Nxc3 {[%emt 0:06:25]} 16. Nxc3 {[%emt 0:00:28]} Bd4+ {[%emt 0:00:43]} 17. Kh1 {[%emt 0:00:01]} Ne5 {[%emt 0:00:29]} 18. fxg6 {[%emt 0:14:42]} hxg6 {[%emt 0:00:04]} 19. Qf4 {[%emt 0:04:16]} Qd8 {[%emt 0:09:42]} 20. Be4 {[%emt 0:01:44]} d5 {[%emt 0:01:10]} 21. Bc2 {[%emt 0:07:32]} Re6 {[%emt 0:00:14]} 22. Bg5 {[%emt 0:03:20]} Qf8 {[%emt 0:03:14]} 23. Rad1 {[%emt 0:02:11]} Rae8 {[%emt 0:05:09]} 24. Qh4 {[%emt 0:00:36]} f5 {[%emt 0:02:10]} 25. Ne2 {[%emt 0:05:54]} Ng4 {[%emt 0:05:41]} 26. Nxd4 {[%emt 0:00:24]} cxd4 {[%emt 0:00:01]} 27. Rxd4 {[%emt 0:03:28]} Qc5 {[%emt 0:00:03]} 28. Rxg4 {[%emt 0:00:48]} fxg4 {[%emt 0:06:54]} 29. Bf6 {[%emt 0:00:16]} Rxf6 {[%emt 0:00:26]} 30. Qxf6 {[%emt 0:00:03]} Qe7 {[%emt 0:00:34]} 31. Qxg6+ {[%emt 0:00:06]} Kh8 {[%emt 0:00:08]} 32. Qh5+ {[%emt 0:00:41]} Kg8 {[%emt 0:00:06]} 33. Bg6 {[%emt 0:03:49]} Rf8 {[%emt 0:00:53]} 34. Rxf8+ {[%emt 0:00:12]} Kxf8 {[%emt 0:00:15]} 35. Qh8# {[%emt 0:00:01]} 1-0

[Event "41th GRE-ch Women 2018"]
[Site "Thessaloniki"]
[Date "2018.12.16"]
[Round "5"]
[White "Tsivelekidou, Evgenia"]
[Black "Pavlidou, Ekaterini"]
[Result "0-1"]
[ECO "B30"]
[WhiteElo "1861"]
[BlackElo "2185"]
[Annotator "NA"]
[PlyCount "78"]
[EventDate "2018.12.12"]
[EventType "tourn"]
[EventCountry "GRE"]
[SourceTitle "playchess.com"]
[Source "ChessBase"]
[SourceQuality "1"]
[TimeControl "40/5400+30:1800+30"]

1. e4 {[%emt 0:00:00]} c5 {[%emt 0:00:25]} 2. Nf3 {[%emt 0:00:00]} Nc6 {[%emt 0:02:31]} 3. Bb5 {[%emt 0:00:00]} Qc7 {[%emt 0:02:31]} 4. c3 {[%emt 0:01:39]} Nf6 {[%emt 0:00:29]} 5. Qe2 {[%emt 0:00:32]} a6 {[%emt 0:01:19]} 6. Ba4 {[%emt 0:00:49]} b5 {[%emt 0:00:27]} 7. Bc2 {[%emt 0:00:24]} e5 {[%emt 0:02:03]} 8. O-O {[%emt 0:02:36]} d6 {[%emt 0:01:09]} 9. d3 {[%emt 0:01:40]} h6 {[%emt 0:01:07]} 10. Nbd2 {[%emt 0:02:27]} Be6 {[%emt 0:07:52]} 11. Rd1 {[%emt 0:04:50]} g6 {[%emt 0:07:07]} 12. Nf1 {[%emt 0:08:57]} Bg7 {[%emt 0:00:10]} 13. h3 {[%emt 0:04:02]} d5 {[%emt 0:12:33]} 14. a4 {[%emt 0:10:18]} O-O {[%emt 0:01:58]} 15. Bd2 {[%emt 0:09:21]} d4 {[%emt 0:03:45]} 16. cxd4 {[%emt 0:07:51]} cxd4 {[%emt 0:02:04]} 17. Rdc1 {[%emt 0:03:05]} Qd6 {[%emt 0:02:08]} 18. Qd1 {[%emt 0:14:43]} Rfb8 {[%emt 0:21:43]} 19. Bb3 {[%emt 0:02:14]} b4 {[%emt 0:10:24]} 20. a5 {[%emt 0:05:37]} Bxb3 {[%emt 0:01:29]} 21. Qxb3 {[%emt 0:00:06]} Rb5 {[%emt 0:00:16]} 22. Qc4 {[%emt 0:04:52]} Rc8 {[%emt 0:00:41]} 23. Ra4 {[%emt 0:02:12]} Bf8 {[%emt 0:00:37]} 24. Ng3 {[%emt 0:02:11]} Nd7 {[%emt 0:01:38]} 25. h4 {[%emt 0:03:45]} Ne7 {[%emt 0:01:42]} 26. Qa2 {[%emt 0:01:43]} Rxc1+ {[%emt 0:00:14]} 27. Bxc1 {[%emt 0:00:05]} Nc5 {[%emt 0:00:29]} 28. h5 {[%emt 0:01:17]} Nxa4 {[%emt 0:02:52]} 29. Qxa4 {[%emt 0:00:04]} Qc5 {[%emt 0:02:44]} 30. Bd2 {[%emt 0:00:47]} b3 {[%emt 0:02:44]} 31. hxg6 {[%emt 0:01:09]} fxg6 {[%emt 0:00:35]} 32. Ne1 {[%emt 0:00:42]} Nc6 {[%emt 0:00:56]} 33. f4 {[%emt 0:01:13]} exf4 {[%emt 0:02:09]} 34. Bxf4 {[%emt 0:00:09]} Qb4 {[%emt 0:00:37]} 35. Qa1 {[%emt 0:00:51]} Bd6 {[%emt 0:00:14]} 36. Ne2 {[%emt 0:01:43]} Bxf4 {[%emt 0:01:06]} 37. Nxf4 {[%emt 0:00:05]} Qd2 {[%emt 0:00:51]} 38. Nd5 {[%emt 0:01:04]} Rxa5 {[%emt 0:00:34]} 39. Qb1 {[%emt 0:00:08]} Rc5 {[%emt 0:00:39]} 0-1